fUST/lending_fUST_20240828
["ID","MTS","AMOUNT","RATE_DAILY","PERIOD"]
[336431552,1724823054221,-500.0,0.00012054,2]
[336431553,1724823054232,-500.0,0.00012054,2]
[336431554,1724823054243,-605.56578224,0.00012054,2]
[336431555,1724823054255,-1066.37,0.00012054,2]
[336431556,1724823054264,-500.0,0.00012054,2]
[336431557,1724823054274,-500.0,0.00012054,2]
[336431558,1724823054284,-1879.62,0.00012054,2]
[336431559,1724823054295,-879.97,0.00012054,2]
[336431560,1724823054306,-500.0,0.00012054,2]
[336431561,1724823054316,-500.0,0.00012054,2]
[336431562,1724823054325,-500.0,0.00012054,2]
[336431563,1724823054335,-716.58,0.00012054,2]
[336431564,1724823054344,-5572.11778217,0.00012228,2]
[336431565,1724823054353,-500.0,0.00012327,2]
[336431566,1724823054363,-500.0,0.00012328,2]
[336431567,1724823054372,-500.0,0.00012328,2]
[336431568,1724823054381,-489.25177463,0.00012328,2]
[336431569,1724823054390,-500.0,0.00012328,2]
[336431570,1724823054400,-500.0,0.00012328,2]
[336431571,1724823054409,-500.0,0.00012328,2]
[336431572,1724823054419,-500.0,0.00012328,2]
[336431573,1724823054428,-500.0,0.00012328,2]
[336431574,1724823054469,-500.0,0.00012328,2]
[336431575,1724823054478,-500.0,0.00012328,2]
[336431576,1724823054488,-500.0,0.00012328,2]
[336431577,1724823054497,-500.0,0.00012328,2]
[336431578,1724823054506,-500.0,0.00012328,2]
[336431579,1724823054515,-500.0,0.00012328,2]
[336431580,1724823054525,-500.0,0.00012328,2]
[336431581,1724823054535,-500.0,0.00012328,2]
[336431582,1724823054544,-500.0,0.00012328,2]
[336431583,1724823054553,-500.0,0.00012328,2]
[336431584,1724823054563,-500.0,0.00012328,2]
[336431585,1724823054572,-500.0,0.00012328,2]
[336431586,1724823054581,-500.0,0.00012328,2]
[336431587,1724823054590,-500.0,0.00012328,2]
[336431588,1724823054600,-500.0,0.00012328,2]
[336431589,1724823054609,-500.0,0.00012328,2]
[336431590,1724823054618,-500.0,0.00012328,2]
[336431591,1724823054628,-500.0,0.00012328,2]
[336431592,1724823054637,-500.0,0.00012328,2]
[336431593,1724823054647,-500.0,0.00012328,2]
[336431594,1724823054655,-500.0,0.00012328,2]
[336431595,1724823054665,-500.0,0.00012328,2]
[336431596,1724823054675,-500.0,0.00012328,2]
[336431597,1724823054685,-500.0,0.00012328,2]
[336431598,1724823054695,-500.0,0.00012328,2]
[336431599,1724823054705,-534.47,0.00012328,2]
[336431600,1724823054716,-500.0,0.00012328,2]
[336431601,1724823054725,-1073.08,0.00012328,2]
[336431602,1724823054734,-500.0,0.00012328,2]
[336431603,1724823054743,-500.0,0.00012328,2]
[336431604,1724823054753,-500.0,0.00012328,2]
[336431605,1724823054764,-500.0,0.00012328,2]
[336431606,1724823054773,-976.28,0.00012328,2]
[336431607,1724823054783,-681.01,0.00012328,2]
[336431608,1724823054792,-150.27940324,0.00012328,2]
[336431609,1724823054802,-6351.33,0.00012328,2]
[336431610,1724823054812,-1199.56,0.00012328,2]
[336431611,1724823054821,-500.0,0.00012328,2]
[336431612,1724823054832,-500.0,0.00012328,2]
[336431613,1724823054841,-500.0,0.00012328,2]
[336431614,1724823054856,-640.43,0.00012328,2]
[336431615,1724823054865,-2948.06,0.00012328,2]
[336431616,1724823054875,-500.0,0.00012328,2]
[336431617,1724823054885,-552.49,0.00012328,2]
[336431618,1724823054895,-478.41935746,0.00012328,2]
[336431619,1724823054905,-500.0,0.00012328,2]
[336431620,1724823054915,-500.0,0.00012328,2]
[336431621,1724823054926,-500.0,0.00012328,2]
[336431622,1724823054936,-500.0,0.00012328,2]
[336431623,1724823054945,-500.0,0.00012328,2]
[336431624,1724823054955,-500.0,0.00012328,2]
[336431625,1724823054966,-500.0,0.00012328,2]
[336431626,1724823054976,-500.0,0.00012328,2]
[336431627,1724823054985,-500.0,0.00012328,2]
[336431628,1724823054994,-500.0,0.00012328,2]
[336431629,1724823055004,-500.0,0.00012328,2]
[336431630,1724823055013,-500.0,0.00012328,2]
[336431631,1724823055022,-500.0,0.00012328,2]
[336431632,1724823055032,-500.0,0.00012328,2]
[336431633,1724823055042,-500.0,0.00012328,2]
[336431634,1724823055052,-1275.5,0.00012328,2]
[336431635,1724823055062,-500.0,0.00012328,2]
[336431636,1724823055071,-252.10264399,0.00012328,2]
[336431637,1724823055080,-500.0,0.00012328,2]
[336431638,1724823055090,-500.0,0.00012328,2]
[336431639,1724823055100,-607.17,0.00012328,2]
[336431640,1724823055110,-542.67,0.00012328,2]
[336431641,1724823055120,-500.0,0.00012328,2]
[336431642,1724823055130,-500.0,0.00012328,2]
[336431643,1724823055140,-500.0,0.00012328,2]
[336431644,1724823055150,-282.97427794,0.00012328,2]
[336431645,1724823055160,-500.0,0.00012328,2]
[336431646,1724823055169,-506.04010127,0.00012328,2]
[336431647,1724823055179,-500.0,0.00012328,2]
[336431648,1724823055188,-500.0,0.00012328,2]
[336431649,1724823055198,-500.0,0.00012328,2]
[336431650,1724823055208,-500.0,0.00012328,2]
[336431651,1724823055220,-637.63498908,0.00012328,2]
[336431652,1724823055230,-500.0,0.00012328,2]
[336431653,1724823055240,-2577.61,0.00012328,2]
[336431654,1724823055250,-500.0,0.00012328,2]
[336431655,1724823055259,-500.0,0.00012328,2]
[336431656,1724823055269,-500.0,0.00012328,2]
[336431657,1724823055279,-500.0,0.00012328,2]
[336431658,1724823055288,-500.0,0.00012328,2]
[336431659,1724823055297,-500.0,0.00012328,2]
[336431660,1724823055307,-1066.37,0.00012328,2]
[336431661,1724823055316,-500.0,0.00012328,2]
[336431662,1724823055325,-500.0,0.00012328,2]
[336431663,1724823055335,-1879.62,0.00012328,2]
[336431664,1724823055344,-879.97,0.00012328,2]
[336431665,1724823055354,-500.0,0.00012328,2]
[336431666,1724823055364,-497.35099831,0.00012328,2]
[336431667,1724823055374,-500.0,0.00012328,2]
[336431668,1724823055383,-716.58,0.00012328,2]
[336431669,1724823055393,-1000.0,0.00012419,2]
[336431670,1724823055402,-600.0,0.00012496,2]
[336431671,1724823055411,-500.0,0.00012601,2]
[336431672,1724823055421,-642.80736651,0.00012602,2]
[336431673,1724823055430,-500.0,0.00012602,2]
[336431674,1724823055439,-637.21609299,0.00012602,2]
[336431675,1724823055448,-566.31715078,0.00012602,2]
[336431676,1724823055458,-500.0,0.00012602,2]
[336431677,1724823055467,-500.0,0.00012602,2]
[336431678,1724823055485,-500.0,0.00012602,2]
[336431679,1724823055494,-591.49579405,0.00012602,2]
[336431680,1724823055503,-500.0,0.00012602,2]
[336431681,1724823055513,-228.23587818,0.00012602,2]
[336431682,1724823055522,-500.0,0.00012602,2]
[336431683,1724823055532,-500.0,0.00012602,2]
[336431684,1724823055541,-202.59675297,0.00012602,2]
[336431685,1724823055550,-264.87796279,0.00012602,2]
[336431686,1724823055560,-500.0,0.00012602,2]
[336431687,1724823055569,-330.14,0.00012602,2]
[336431688,1724823055578,-500.0,0.00012602,2]
[336431689,1724823055587,-500.0,0.00012602,2]
[336431690,1724823055597,-500.0,0.00012602,2]
[336431691,1724823055607,-500.0,0.00012602,2]
[336431692,1724823055616,-500.0,0.00012602,2]
[336431693,1724823055625,-645.23772898,0.00012602,2]
[336431694,1724823055634,-500.0,0.00012602,2]
[336431695,1724823055644,-500.0,0.00012602,2]
[336431696,1724823055653,-472.38,0.00012602,2]
[336431697,1724823055663,-500.0,0.00012602,2]
[336431698,1724823055672,-500.0,0.00012602,2]
[336431699,1724823055682,-500.0,0.00012602,2]
[336431700,1724823055692,-500.0,0.00012602,2]
[336431701,1724823055702,-500.0,0.00012602,2]
[336431702,1724823055711,-500.0,0.00012602,2]
[336431703,1724823055721,-500.0,0.00012602,2]
[336431704,1724823055731,-1073.08,0.00012602,2]
[336431705,1724823055740,-500.0,0.00012602,2]
[336431706,1724823055750,-500.0,0.00012602,2]
[336431707,1724823055759,-500.0,0.00012602,2]
[336431708,1724823055768,-500.0,0.00012602,2]
[336431709,1724823055778,-976.28,0.00012602,2]
[336431710,1724823055788,-681.01,0.00012602,2]
[336431711,1724823055798,-6351.33,0.00012602,2]
[336431712,1724823055809,-1199.56,0.00012602,2]
[336431713,1724823055818,-500.0,0.00012602,2]
[336431714,1724823055827,-500.0,0.00012602,2]
[336431715,1724823055837,-640.43,0.00012602,2]
[336431716,1724823055850,-2948.06,0.00012602,2]
[336431717,1724823055859,-432.77902595,0.00012602,2]
[336431718,1724823055869,-500.0,0.00012602,2]
[336431719,1724823055878,-500.0,0.00012602,2]
[336431720,1724823055888,-500.0,0.00012602,2]
[336431721,1724823055897,-500.0,0.00012602,2]
[336431722,1724823055907,-500.0,0.00012602,2]
[336431723,1724823055916,-500.0,0.00012602,2]
[336431724,1724823055925,-500.0,0.00012602,2]
[336431725,1724823055936,-500.0,0.00012602,2]
[336431726,1724823055946,-500.0,0.00012602,2]
[336431727,1724823055956,-500.0,0.00012602,2]
[336431728,1724823055965,-500.0,0.00012602,2]
[336431729,1724823055976,-510.33263118,0.00012602,2]
[336431730,1724823055986,-500.0,0.00012602,2]
[336431731,1724823055996,-500.0,0.00012602,2]
[336431732,1724823056005,-500.0,0.00012602,2]
[336431733,1724823056015,-1275.5,0.00012602,2]
[336431734,1724823056025,-150.59,0.00012602,2]
[336431735,1724823056035,-500.0,0.00012602,2]
[336431736,1724823056044,-542.67,0.00012602,2]
[336431737,1724823056054,-500.0,0.00012602,2]
[336431738,1724823056063,-500.0,0.00012602,2]
[336431739,1724823056073,-500.0,0.00012602,2]
[336431740,1724823056083,-500.0,0.00012602,2]
[336431741,1724823056092,-500.0,0.00012602,2]
[336431742,1724823056101,-500.0,0.00012602,2]
[336431743,1724823056110,-500.0,0.00012602,2]
[336431744,1724823056120,-500.0,0.00012602,2]
[336431745,1724823056130,-500.0,0.00012602,2]
[336431746,1724823056139,-2577.61,0.00012602,2]
[336431747,1724823056149,-500.0,0.00012602,2]
[336431748,1724823056158,-500.0,0.00012602,2]
[336431749,1724823056168,-500.0,0.00012602,2]
[336431750,1724823056177,-500.0,0.00012602,2]
[336431751,1724823056186,-500.0,0.00012602,2]
[336431752,1724823056196,-500.0,0.00012602,2]
[336431753,1724823056206,-1066.37,0.00012602,2]
[336431754,1724823056215,-500.0,0.00012602,2]
[336431755,1724823056225,-500.0,0.00012602,2]
[336431756,1724823056235,-1879.62,0.00012602,2]
[336431757,1724823056244,-879.97,0.00012602,2]
[336431758,1724823056253,-500.0,0.00012602,2]
[336431759,1724823056262,-500.0,0.00012602,2]
[336431760,1724823056272,-716.58,0.00012602,2]
[336431761,1724823056281,-42449.47322548,0.00012782,2]
[336431762,1724823056291,-500.0,0.00012875,2]
[336431763,1724823056300,-202.31,0.00012876,2]
[336431764,1724823056310,-500.0,0.00012876,2]
[336431765,1724823056319,-246.34,0.00012876,2]
[336431766,1724823056329,-500.0,0.00012876,2]
[336431767,1724823056338,-500.0,0.00012876,2]
[336431768,1724823056348,-600.47,0.00012876,2]
[336431769,1724823056358,-500.0,0.00012876,2]
[336431770,1724823056367,-500.0,0.00012876,2]
[336431771,1724823056377,-500.0,0.00012876,2]
[336431772,1724823056386,-432.94,0.00012876,2]
[336431773,1724823056396,-500.0,0.00012876,2]
[336431774,1724823056405,-500.0,0.00012876,2]
[336431775,1724823056414,-500.0,0.00012876,2]
[336431776,1724823056424,-500.0,0.00012876,2]
[336431777,1724823056433,-500.0,0.00012876,2]
[336431778,1724823056443,-500.0,0.00012876,2]
[336431779,1724823056452,-500.0,0.00012876,2]
[336431780,1724823056462,-500.0,0.00012876,2]
[336431781,1724823056472,-500.0,0.00012876,2]
[336431782,1724823056482,-500.0,0.00012876,2]
[336431783,1724823056492,-500.0,0.00012876,2]
[336431784,1724823056501,-500.0,0.00012876,2]
[336431785,1724823056511,-1073.08,0.00012876,2]
[336431786,1724823056521,-500.0,0.00012876,2]
[336431787,1724823056530,-500.0,0.00012876,2]
[336431788,1724823056540,-500.0,0.00012876,2]
[336431789,1724823056549,-500.0,0.00012876,2]
[336431790,1724823056559,-976.28,0.00012876,2]
[336431791,1724823056569,-681.01,0.00012876,2]
[336431792,1724823056579,-6351.33,0.00012876,2]
[336431793,1724823056588,-1199.56,0.00012876,2]
[336431794,1724823056597,-500.0,0.00012876,2]
[336431795,1724823056606,-500.0,0.00012876,2]
[336431796,1724823056616,-640.43,0.00012876,2]
[336431797,1724823056625,-2948.06,0.00012876,2]
[336431798,1724823056635,-500.0,0.00012876,2]
[336431799,1724823056644,-500.0,0.00012876,2]
[336431800,1724823056654,-282.82187944,0.00012876,2]
[336431801,1724823056664,-271.51082882,0.00012876,2]
[336431802,1724823056674,-245.47441959,0.00012876,2]
[336431803,1724823056684,-500.0,0.00012876,2]
[336431804,1724823056696,-500.0,0.00012876,2]
[336431805,1724823056706,-500.0,0.00012876,2]
[336431806,1724823056715,-500.0,0.00012876,2]
[336431807,1724823056726,-500.0,0.00012876,2]
[336431808,1724823056735,-500.0,0.00012876,2]
[336431809,1724823056745,-500.0,0.00012876,2]
[336431810,1724823056755,-449.93562213,0.00012876,2]
[336431811,1724823056764,-586.89,0.00012876,2]
[336431812,1724823056773,-1275.5,0.00012876,2]
[336431813,1724823056783,-500.0,0.00012876,2]
[336431814,1724823056792,-542.67,0.00012876,2]
[336431815,1724823056802,-500.0,0.00012876,2]
[336431816,1724823056811,-500.0,0.00012876,2]
[336431817,1724823056820,-500.0,0.00012876,2]
[336431818,1724823056830,-500.0,0.00012876,2]
[336431819,1724823056843,-500.0,0.00012876,2]
[336431820,1724823056856,-500.0,0.00012876,2]
[336431821,1724823056865,-500.0,0.00012876,2]
[336431822,1724823056875,-500.0,0.00012876,2]
[336431823,1724823056884,-500.0,0.00012876,2]
[336431824,1724823056894,-2577.61,0.00012876,2]
[336431825,1724823056904,-396.85,0.00012876,2]
[336431826,1724823056913,-500.0,0.00012876,2]
[336431827,1724823056924,-194.87,0.00012876,2]
[336431828,1724823056933,-500.0,0.00012876,2]
[336431829,1724823056942,-389.32,0.00012876,2]
[336431830,1724823056952,-500.0,0.00012876,2]
[336431831,1724823056961,-1066.37,0.00012876,2]
[336431832,1724823056971,-503.97129536,0.00012876,2]
[336431833,1724823056981,-500.0,0.00012876,2]
[336431834,1724823056991,-1879.62,0.00012876,2]
[336431835,1724823057000,-879.97,0.00012876,2]
[336431836,1724823057009,-578.05364103,0.00012876,2]
[336431837,1724823057019,-478.16,0.00012876,2]
[336431838,1724823057028,-623.94489,0.00012877,2]
[336431839,1724823057037,-2168.18943453,0.00012898,2]
[336431840,1724823057047,-1872.73488634,0.00012898,2]
[336431841,1724823057056,-3094.87417801,0.00012898,2]
[336431842,1724823057065,-934.65211132,0.00012898,2]
[336431843,1724823057075,-4041.32953532,0.000129,2]
[336431844,1724823057084,-817.98661284,0.00012934,2]
[336431845,1724823057094,-493.77204427,0.0001295,2]
[336431846,1724823057103,-166.89815385,0.00012971,2]
[336431847,1724823057113,-310.51011385,0.00012989,2]
[336431848,1724823057123,-569.97573911,0.00012991,2]
[336431849,1724823057132,-154.56721181,0.00012991,2]
[336431850,1724823057141,-729.31646428,0.00012991,2]
[336431851,1724823057151,-154.98088165,0.00012999,2]
[336431852,1724823057160,-154.81078475,0.00012999,2]
[336431853,1724823057169,-863.27824545,0.00013,2]
[336431854,1724823057178,-150.112233,0.000131,2]
[336431855,1724823057188,-177.669334,0.000131,2]
[336431856,1724823057197,-500.0,0.00013149,2]
[336431857,1724823057206,-172.88923334,0.0001315,2]
[336431858,1724823057215,-500.0,0.0001315,2]
[336431859,1724823057226,-500.0,0.0001315,2]
[336431860,1724823057235,-500.0,0.0001315,2]
[336431861,1724823057245,-424.62963486,0.0001315,2]
[336431862,1724823057254,-500.0,0.0001315,2]
[336431863,1724823057263,-500.0,0.0001315,2]
[336431864,1724823057272,-500.0,0.0001315,2]
[336431865,1724823057282,-500.0,0.0001315,2]
[336431866,1724823057291,-500.0,0.0001315,2]
[336431867,1724823057301,-500.0,0.0001315,2]
[336431868,1724823057310,-500.0,0.0001315,2]
[336431869,1724823057319,-438.77,0.0001315,2]
[336431870,1724823057330,-371.08219005,0.0001315,2]
[336431871,1724823057339,-500.0,0.0001315,2]
[336431872,1724823057349,-500.0,0.0001315,2]
[336431873,1724823057359,-500.0,0.0001315,2]
[336431874,1724823057368,-1073.08,0.0001315,2]
[336431875,1724823057378,-500.0,0.0001315,2]
[336431876,1724823057388,-500.0,0.0001315,2]
[336431877,1724823057398,-597.91,0.0001315,2]
[336431878,1724823057408,-500.0,0.0001315,2]
[336431879,1724823057417,-976.28,0.0001315,2]
[336431880,1724823057427,-681.01,0.0001315,2]
[336431881,1724823057437,-6351.33,0.0001315,2]
[336431882,1724823057446,-1199.56,0.0001315,2]
[336431883,1724823057456,-500.0,0.0001315,2]
[336431884,1724823057466,-500.0,0.0001315,2]
[336431885,1724823057476,-640.43,0.0001315,2]
[336431886,1724823057485,-2948.06,0.0001315,2]
[336431887,1724823057495,-500.0,0.0001315,2]
[336431888,1724823057504,-500.0,0.0001315,2]
[336431889,1724823057514,-500.0,0.0001315,2]
[336431890,1724823057524,-500.0,0.0001315,2]
[336431891,1724823057534,-500.0,0.0001315,2]
[336431892,1724823057544,-554.37,0.0001315,2]
[336431893,1724823057554,-319.44888694,0.0001315,2]
[336431894,1724823057563,-375.1252073,0.0001315,2]
[336431895,1724823057573,-500.0,0.0001315,2]
[336431896,1724823057582,-1275.5,0.0001315,2]
[336431897,1724823057592,-500.0,0.0001315,2]
[336431898,1724823057602,-542.67,0.0001315,2]
[336431899,1724823057611,-500.0,0.0001315,2]
[336431900,1724823057622,-504.26473185,0.0001315,2]
[336431901,1724823057632,-500.0,0.0001315,2]
[336431902,1724823057643,-500.0,0.0001315,2]
[336431903,1724823057652,-500.0,0.0001315,2]
[336431904,1724823057663,-409.50009696,0.0001315,2]
[336431905,1724823057673,-500.0,0.0001315,2]
[336431906,1724823057683,-500.0,0.0001315,2]
[336431907,1724823057694,-500.0,0.0001315,2]
[336431908,1724823057705,-2577.61,0.0001315,2]
[336431909,1724823057715,-500.0,0.0001315,2]
[336431910,1724823057725,-500.0,0.0001315,2]
[336431911,1724823057736,-500.0,0.0001315,2]
[336431912,1724823057746,-1066.37,0.0001315,2]
[336431913,1724823057757,-500.0,0.0001315,2]
[336431914,1724823057766,-1879.62,0.0001315,2]
[336431915,1724823057776,-879.97,0.0001315,2]
[336431916,1724823057786,-150.112233,0.000132,2]
[336431917,1724823057796,-150.112233,0.000133,2]
[336431918,1724823057806,-150.112233,0.000133,2]
[336431919,1724823057816,-150.112233,0.000134,2]
[336431920,1724823057825,-500.0,0.00013424,2]
[336431921,1724823057836,-500.0,0.00013424,2]
[336431922,1724823057848,-500.0,0.00013424,2]
[336431923,1724823057860,-500.0,0.00013424,2]
[336431924,1724823057870,-500.0,0.00013424,2]
[336431925,1724823057879,-500.0,0.00013424,2]
[336431926,1724823057889,-500.0,0.00013424,2]
[336431927,1724823057899,-500.0,0.00013424,2]
[336431928,1724823057909,-494.08,0.00013424,2]
[336431929,1724823057919,-500.0,0.00013424,2]
[336431930,1724823057931,-500.0,0.00013424,2]
[336431931,1724823057942,-500.0,0.00013424,2]
[336431932,1724823058126,-1073.08,0.00013424,2]
[336431933,1724823058135,-550.59,0.00013424,2]
[336431934,1724823058145,-500.0,0.00013424,2]
[336431935,1724823058154,-500.0,0.00013424,2]
[336431936,1724823058166,-976.28,0.00013424,2]
[336431937,1724823058175,-681.01,0.00013424,2]
[336431938,1724823058185,-6351.33,0.00013424,2]
[336431939,1724823058195,-1199.56,0.00013424,2]
[336431940,1724823058205,-500.0,0.00013424,2]
[336431941,1724823058214,-500.0,0.00013424,2]
[336431942,1724823058225,-640.43,0.00013424,2]
[336431943,1724823058235,-2948.06,0.00013424,2]
[336431944,1724823058244,-161.78148259,0.00013424,2]
[336431945,1724823058254,-500.0,0.00013424,2]
[336431946,1724823058263,-588.14,0.00013424,2]
[336431947,1724823058273,-500.0,0.00013424,2]
[336431948,1724823058282,-500.0,0.00013424,2]
[336431949,1724823058292,-500.0,0.00013424,2]
[336431950,1724823058302,-1275.5,0.00013424,2]
[336431951,1724823058311,-500.0,0.00013424,2]
[336431952,1724823058322,-542.67,0.00013424,2]
[336431953,1724823058332,-500.0,0.00013424,2]
[336431954,1724823058341,-500.0,0.00013424,2]
[336431955,1724823058350,-500.0,0.00013424,2]
[336431956,1724823058360,-500.0,0.00013424,2]
[336431957,1724823058370,-500.0,0.00013424,2]
[336431958,1724823058379,-500.0,0.00013424,2]
[336431959,1724823058388,-217.75,0.00013424,2]
[336431960,1724823058397,-2577.61,0.00013424,2]
[336431961,1724823058407,-500.0,0.00013424,2]
[336431962,1724823058416,-294.02,0.00013424,2]
[336431963,1724823058426,-190.35,0.00013424,2]
[336431964,1724823058435,-1066.37,0.00013424,2]
[336431965,1724823058445,-500.0,0.00013424,2]
[336431966,1724823058454,-1879.62,0.00013424,2]
[336431967,1724823058464,-879.97,0.00013424,2]
[336431968,1724823058474,-2282.92421799,0.00013477,3]
[336431969,1724823058484,-150.112233,0.000135,2]
[336431970,1724823058494,-3000.0,0.00013599,2]
[336431971,1724823058503,-150.112233,0.000136,2]
[336431972,1724823058513,-150.112233,0.000136,2]
[336431973,1724823058523,-14239.44007845,0.00013688,2]
[336431974,1724823058532,-773.082119,0.00013688,2]
[336431975,1724823058542,-383.375211,0.00013688,2]
[336431976,1724823058552,-773.082119,0.00013688,2]
[336431977,1724823058562,-383.375211,0.00013688,2]
[336431978,1724823058577,-151.0,0.00013688,2]
[336431979,1724823058586,-151.0,0.00013688,2]
[336431980,1724823058596,-281.28550327,0.00013697,2]
[336431981,1724823058606,-500.0,0.00013698,2]
[336431982,1724823058616,-500.0,0.00013698,2]
[336431983,1724823058625,-500.0,0.00013698,2]
[336431984,1724823058635,-500.0,0.00013698,2]
[336431985,1724823058645,-500.0,0.00013698,2]
[336431986,1724823058655,-195.5494493,0.00013698,2]
[336431987,1724823058664,-475.05411845,0.00013698,2]
[336431988,1724823058674,-500.0,0.00013698,2]
[336431989,1724823058683,-681.31731393,0.00013698,2]
[336431990,1724823058694,-681.31731393,0.00013698,2]
[336431991,1724823058705,-681.31731393,0.00013698,2]
[336431992,1724823058715,-500.0,0.00013698,2]
[336431993,1724823058727,-681.31731393,0.00013698,2]
[336431994,1724823058737,-681.31731393,0.00013698,2]
[336431995,1724823058747,-681.31731393,0.00013698,2]
[336431996,1724823058757,-681.31731393,0.00013698,2]
[336431997,1724823058767,-681.31731393,0.00013698,2]
[336431998,1724823058776,-681.31731393,0.00013698,2]
[336431999,1724823058786,-681.31731393,0.00013698,2]
[336432000,1724823058796,-681.31731393,0.00013698,2]
[336432001,1724823058807,-564.54675196,0.00013698,2]
[336432002,1724823058816,-681.31731393,0.00013698,2]
[336432003,1724823058826,-681.31731393,0.00013698,2]
[336432004,1724823058836,-681.31731393,0.00013698,2]
[336432005,1724823058847,-681.31731393,0.00013698,2]
[336432006,1724823058860,-681.31731393,0.00013698,2]
[336432007,1724823058869,-681.31731393,0.00013698,2]
[336432008,1724823058879,-681.31731393,0.00013698,2]
[336432009,1724823058889,-681.31731393,0.00013698,2]
[336432010,1724823058898,-681.31731393,0.00013698,2]
[336432011,1724823058908,-706.09248898,0.00013698,2]
[336432012,1724823058918,-706.09248898,0.00013698,2]
[336432013,1724823058929,-706.09248898,0.00013698,2]
[336432014,1724823058939,-706.09248898,0.00013698,2]
[336432015,1724823058949,-706.09248898,0.00013698,2]
[336432016,1724823058959,-706.09248898,0.00013698,2]
[336432017,1724823058969,-706.09248898,0.00013698,2]
[336432018,1724823058979,-706.09248898,0.00013698,2]
[336432019,1724823058989,-500.0,0.00013698,2]
[336432020,1724823058999,-1239.58459176,0.00013698,2]
[336432021,1724823059008,-500.0,0.00013698,2]
[336432022,1724823059017,-212.37,0.00013698,2]
[336432023,1724823059028,-500.0,0.00013698,2]
[336432024,1724823059038,-500.0,0.00013698,2]
[336432025,1724823059047,-500.0,0.00013698,2]
[336432026,1724823059056,-1073.08,0.00013698,2]
[336432027,1724823059066,-500.0,0.00013698,2]
[336432028,1724823059075,-500.0,0.00013698,2]
[336432029,1724823059085,-976.28,0.00013698,2]
[336432030,1724823059094,-681.01,0.00013698,2]
[336432031,1724823059104,-6351.33,0.00013698,2]
[336432032,1724823059114,-1199.56,0.00013698,2]
[336432033,1724823059123,-150.89,0.00013698,2]
[336432034,1724823059132,-500.0,0.00013698,2]
[336432035,1724823059142,-640.43,0.00013698,2]
[336432036,1724823059152,-2948.06,0.00013698,2]
[336432037,1724823059161,-500.0,0.00013698,2]
[336432038,1724823059170,-524.22,0.00013698,2]
[336432039,1724823059180,-500.0,0.00013698,2]
[336432040,1724823059194,-500.0,0.00013698,2]
[336432041,1724823059203,-1275.5,0.00013698,2]
[336432042,1724823059212,-440.26773225,0.00013698,2]
[336432043,1724823059223,-542.67,0.00013698,2]
[336432044,1724823059233,-500.0,0.00013698,2]
[336432045,1724823059242,-500.0,0.00013698,2]
[336432046,1724823059252,-500.0,0.00013698,2]
[336432047,1724823059261,-500.0,0.00013698,2]
[336432048,1724823059271,-155.98,0.00013698,2]
[336432049,1724823059281,-2577.61,0.00013698,2]
[336432050,1724823059291,-500.0,0.00013698,2]
[336432051,1724823059301,-1066.37,0.00013698,2]